Cogmind - Beta 14 @@@ ROGUE MODE // 2024.08.22 @ 20:12:58 Player: cabin Result: Destroyed by S-10 Pest with Light Assault Rifle Performance ------------- Evolutions (1) 500 Regions Visited (2) 400 Robots Destroyed (13) 65 Value Destroyed (162) 162 Prototype IDs (0) 0 Alien Tech Used (0) 0 Bonus (0) 0 TOTAL SCORE: 1127 Bonus ------- None Cogmind --------- Core Integrity 0/400 Matter 290/300 Energy 104/350 System Corruption 0% Temperature Cool (0) Movement Core (100) Ox1 Location -9/Materials Parts ------- > --- POWER (2) -------- (None) > --- PROPULSION (2) --- (None) > --- UTILITY (2) ------ High-capacity Battery Improved Targeting Computer > --- WEAPON (3) ------- (None) > --- INVENTORY (5) ---- Light Assault Rifle Light Assault Rifle Peak State ------------ > --- POWER ------------ Ion Engine Ion Engine > --- PROPULSION ------- Wheel Compact Wheel > --- UTILITY ---------- Terrain Scanner Targeting Computer > --- WEAPON ----------- Medium Laser Beam Cannon Light Assault Rifle > --- INVENTORY -------- (None) [Rating: 9] Favorites ----------- Power Ion Engine Engine Ion Engine Propulsion Wheel Wheel Wheel Utility Targeting Computer Device Terrain Scanner Storage High-capacity Battery Processor Targeting Computer Weapon Beam Cannon Energy Gun Medium Laser Energy Cannon Beam Cannon Ballistic Gun Light Assault Rifle Build | -11 -10 -9 ------- Run | Yrd Mat Mat Slots Evolved 2 | . . 2 Power 1 | . . 1 Propulsion . | . . . Utility . | . . . Weapon 1 | . . 1 Parts Attached 18 | 5 5 8 Power 3 | 1 1 1 Engine 3 | 1 1 1 Core . | . . . Reactor . | . . . Propulsion 2 | 2 . . Treads . | . . . Leg . | . . . Wheel 2 | 2 . . Hover . | . . . Flight . | . . . Utility 6 | . 2 4 Device 1 | . 1 . Storage 1 | . . 1 Processor 4 | . 1 3 Hackware . | . . . Protection . | . . . Artifact . | . . . Weapon 7 | 2 2 3 Energy Gun 3 | 2 . 1 Energy Cannon 1 | . 1 . Ballistic Gun 3 | . 1 2 Ballistic Cannon . | . . . Launcher . | . . . Special Weapon . | . . . Impact Weapon . | . . . Slashing Weapon . | . . . Piercing Weapon . | . . . Special Melee Weapon . | . . . Unidentified Prototypes . | . . . Parts Lost 9 | . . 9 Power 2 | . . 2 Propulsion 2 | . . 2 Utility 2 | . . 2 Weapon 3 | . . 3 Highest Loss Streak 6 | . . 6 To Critical Strikes . | . . . Average Slot Usage (%) 77 | . 83 67 Engine 10 | . 11 9 Wheel 21 | . 28 12 Device 4 | . 5 2 Processor 11 | . 9 15 Energy Gun 11 | . 13 8 Energy Cannon 10 | . 10 9 Ballistic Gun 6 | . 4 9 Peak Build Rating 9 | 5 7 9 Average Rating 6 | 3 5 6 On Entrance 4 | . 5 7 Naked Turns . | . . . Heaviest Build 17 | 9 11 17 Greatest Support 26 | 26 26 26 Greatest Overweight (x) 1 | . . 1 Average Overweight (x) . | . . . Largest Inventory Capacity 5 | 5 5 5 Average Capacity 5 | 5 5 5 Most Carried 2 | . 2 2 Average Carried . | . . 1 Final Capacity 5 | 5 5 5 Final Carried 2 | . 1 2 Class Distribution -------------------- 68% | Mutant 31% | Gunner Dominant Class ---------------- Mutant | -10/Materials Gunner | -9/Materials Resources | -11 -10 -9 ----------- Run | Yrd Mat Mat Matter Collected 357 | 187 93 77 Remotely . | . . . Salvage Created 241 | . 144 97 Parts 27 | . 19 8 Haulers Intercepted . | . . . Recyclers Shooed . | . . . Parts Field Recycled . | . . . Retrieved Matter . | . . . Parts Self-Destructed . | . . . Prevented . | . . . Kills | -11 -10 -9 ------- Run | Yrd Mat Mat Combat Hostiles Destroyed 10 | . 6 4 Guns 7 | . 4 3 Cannons 3 | . 2 1 Classes Destroyed 5 | . 3 2 Builder 1 | . 1 . Tunneler 1 | . . 1 Watcher 1 | . 1 . Swarmer 9 | . 6 3 Grunt 1 | . . 1 Best Kill Streak 4 | . 4 3 Combat Bots Only 3 | . 3 3 Max Kills in Single Turn 2 | . 2 1 Gunslinging 1 | . 1 . Exploded . | . . . Melee . | . . . Uniques/NPCs Destroyed . | . . . Combat | -11 -10 -9 -------- Run | Yrd Mat Mat Hostile Shots Fired 164 | . 44 120 Missed 41 | . 12 29 Damage Taken 1100 | . 251 849 Core 463 | . 62 401 Absorbed by Shields . | . . . Core Remaining (%) 87 | 100 75 . Volleys Fired 38 | . 20 18 Largest 3 | . 2 3 Hottest 130 | . 110 130 Shots Fired 90 | . 40 50 Gun 60 | . 27 33 Cannon 30 | . 13 17 Launcher . | . . . Special . | . . . Kinetic 26 | . 8 18 Thermal 57 | . 25 32 Explosive . | . . . Electromagnetic 7 | . 7 . Robot Hit Streak 12 | . 12 4 Robot Miss Streak 4 | . 4 4 Penetration Max . | . . . Secondary Targets 1 | . 1 . Max Gunslinging Chain 1 | . 1 . Shots Hit Robots 39 | . 23 16 Core Hits 17 | . 9 8 Critical Kills . | . . . Critical Parts Destroyed . | . . . Critical Strikes 1 | . . 1 Burn 1 | . . 1 Melee Attacks . | . . . Impact . | . . . Slashing . | . . . Piercing . | . . . Sneak Attacks . | . . . Combat Hostiles . | . . . Follow-up Attacks . | . . . Damage Inflicted 554 | . 302 252 Guns 259 | . 144 115 Cannons 281 | . 158 123 Explosions . | . . . Melee . | . . . Ramming 14 | . . 14 Kinetic 85 | . 30 55 Thermal 414 | . 231 183 Explosive . | . . . Electromagnetic 41 | . 41 . Impact . | . . . Slashing . | . . . Piercing . | . . . Highest Corruption . | . . . Average Corruption . | . . . Corruption Purged . | . . . Corruption Blocked . | . . . Overload Shots . | . . . Overflow Damage . | . . . Projectiles . | . . . Explosions . | . . . Melee . | . . . Knockbacks . | . . . Impact . | . . . Kinetic . | . . . Secondary . | . . . Self-Inflicted Damage 6 | . . 6 Shots . | . . . Rammed 5 | . . 5 Targets Rammed 5 | . . 5 Kicked . | . . . Crushed . | . . . Highest Temperature 365 | . 180 365 Average Temperature 94 | . 74 113 Received Heat Transfer 108 | . 12 96 Effects 2 | . . 2 Energy Bleed 2 | . . 2 Siege Activations . | . . . Robots Corrupted . | . . . Combat Hostiles . | . . . Parts Fried . | . . . Impact Corruptions . | . . . Robots Melted . | . . . Combat Hostiles . | . . . Parts Melted 2 | . 2 . Heat Transferred 1073 | . 555 518 Parts Sabotaged . | . . . Parts Stolen . | . . . Parts Stripped . | . . . Power Chain Reactions . | . . . Alert | -11 -10 -9 ------- Run | Yrd Mat Mat Peak Influence 146 | . 118 146 Initial 20 | . . 20 Average 71 | . 63 94 Maximum Alert Level . | . . . Low Security (%) 100 | 100 100 100 Level 1 . | . . . Level 2 . | . . . Level 3 . | . . . Level 4 . | . . . Level 5 . | . . . High Security . | . . . Max Security . | . . . Squads Dispatched 1 | . . 1 Investigation . | . . . Extermination . | . . . Reinforcement 1 | . . 1 Assault . | . . . Garrison . | . . . Intercept . | . . . Searches Triggered . | . . . Construction Impeded . | . . . Haulers Reinforced . | . . . Active Scanning Responses . | . . . Cargo Convoy Interrupts . | . . . Stealth | -11 -10 -9 --------- Run | Yrd Mat Mat Distress Signals 1 | . 1 . Communications Jammed . | . . . Distress Signals . | . . . Times Spotted 22 | . 9 13 Peak Tracking Total 6 | . 4 6 Tactical Retreats 1 | . . 1 Traps | -11 -10 -9 ------- Run | Yrd Mat Mat Traps Triggered . | . . . Indirectly . | . . . Trap Hack Attempts . | . . . Triggered . | . . . Disarmed . | . . . Reprogrammed . | . . . Reused . | . . . Traps Extracted . | . . . Installed . | . . . Triggered . | . . . Machines | -11 -10 -9 ---------- Run | Yrd Mat Mat Machines Disabled 1 | . . 1 Max in Single Turn 1 | . . 1 Machines Repaired . | . . . Machines Dismantled . | . . . Machines Sabotaged . | . . . Overloaded Fab Kills . | . . . Hacking | -11 -10 -9 --------- Run | Yrd Mat Mat Machines Accessed 3 | . 2 1 Terminals 2 | . 1 1 Fabricators . | . . . Repair Stations . | . . . Recycling Units 1 | . 1 . Scanalyzers . | . . . Garrison Access . | . . . Total Hacks 5 | . 4 1 Successful 4 | . 3 1 Failed 1 | . 1 . Catastrophic . | . . . Database Lockouts . | . . . Manual 1 | . 1 . Terminals 2 | . 1 1 Fabricators . | . . . Repair Stations . | . . . Recycling Units 3 | . 3 . Scanalyzers . | . . . Garrison Access . | . . . Terminal Hacks 1 | . . 1 Zone Layout 1 | . . 1 Fabricator Hacks . | . . . Repair Station Hacks . | . . . Recycling Unit Hacks 3 | . 3 . Recycle Component 2 | . 2 . Process 1 | . 1 . Scanalyzer . | . . . Garrison Access Hacks . | . . . Unauthorized Hacks . | . . . Terminals . | . . . Fabricators . | . . . Repair Stations . | . . . Recycling Units . | . . . Scanalyzers . | . . . Garrison Access . | . . . Data Cores Recovered . | . . . Used . | . . . Hacking Detections 2 | . 2 . Full Trace Events 1 | . 1 . Feedback Events . | . . . Feedback Blocked . | . . . Robot Schematics Acquired . | . . . Robots Built . | . . . Authchips . | . . . Time . | . . . Total Robot Build Rating . | . . . Part Schematics Acquired . | . . . Parts Built . | . . . Authchips . | . . . Time . | . . . Total Part Build Rating . | . . . Parts Repaired . | . . . Time . | . . . Parts Recycled 2 | . 2 . Recycled Matter 176 | . 176 . Retrieved Matter . | . . . Retrieved Components . | . . . Parts Scanalyzed . | . . . Part Schematics Acquired . | . . . Parts Damaged . | . . . Bothacking | -11 -10 -9 ------------ Run | Yrd Mat Mat Used RIF Installer . | . . . Robots Hacked . | . . . Non-combat . | . . . Combat . | . . . Robot Hacks Applied . | . . . Relay Couplers Released . | . . . Fabnet Peak Effective % . | . . . Robots Rewired . | . . . Allies Hacked . | . . . Hacks Repelled . | . . . Allies | -11 -10 -9 -------- Run | Yrd Mat Mat Total Allies . | . . . Largest Group . | . . . Highest-Rated Group . | . . . Highest-Rated Ally . | . . . Total Orders . | . . . Ally Attacks . | . . . Total Damage . | . . . Kills . | . . . Allies Corrupted . | . . . Allies Melted . | . . . Intel | -11 -10 -9 ------- Run | Yrd Mat Mat Robot Analysis Total . | . . . Derelict Logs Recovered . | . . . Drone Launches . | . . . Drone Recoveries . | . . . Exploration | -11 -10 -9 ------------- Run | Yrd Mat Mat Turns Passed 796 | 57 432 307 Spaces Moved 727 | 56 393 278 Core 54 | 2 . 52 Treads . | . . . Legs . | . . . Wheels 673 | 54 393 226 Hover . | . . . Flight . | . . . Fastest Speed 50 | 50 90 50 Average Speed 88 | 89 90 85 Slowest Speed 100 | 100 90 100 Overloaded Moves . | . . . Propulsion Burnouts . | . . . Robots Hopped . | . . . Cave-ins Triggered . | . . . Exploration Rate (%) 23 | 3 47 19 Regions Visited 2 Branch Regions . Pre-discovered Areas . | . . . Known Exits Taken . | . . . Unknown Exits Taken 2 | 1 1 . Scrap Searched . | . . . Spaces Dug . | . . . Terrain Destroyed . | . . . Melee . | . . . Projectile . | . . . AOE . | . . . Terrain Rammed . | . . . Walls Destroyed . | . . . Machines Disabled . | . . . Actions | -11 -10 -9 --------- Run | Yrd Mat Mat Total 802 | 60 431 311 Wait 11 | . 11 . Move 725 | 55 392 278 Hop . | . . . Pick Up . | . . . Fast Attach 15 | 5 5 5 Attach 1 | . . 1 Detach 5 | . 3 2 Swap 2 | . . 2 Drop . | . . . Fire 38 | . 20 18 Melee . | . . . Ram 5 | . . 5 Kick . | . . . Crush . | . . . Escape Stasis . | . . . Rewire . | . . . Trap . | . . . Miscellaneous . | . . . Route ------- -11/Scrapyard -10/Materials (discovered 2 exits: *Mat / [*Min]) -9/Materials History --------- Turn | Location | Event 6 | -11/Scrapyard | Discovered new exit (range 15) 58 | -11/Scrapyard | Entered Materials 304 | -10/Materials | Build established: Mutant 470 | -10/Materials | Discovered new exit (range 12) 475 | -10/Materials | Discovered new exit (range 16) 490 | -10/Materials | Entered another Materials area 490 | -9/Materials | Evolved 2 slots: Power x1, Weapon x1 598 | -9/Materials | Lost 3 parts (1p1n1u) 766 | -9/Materials | Core integrity fell below 50% 784 | -9/Materials | Core integrity fell below 20% 796 | -9/Materials | Lost 6 parts (1p1n1u3w) 797 | -9/Materials | Destroyed by S-10 Pest with Light Assault Rifle Last Messages --------------- Acquired 15 matter. K-01 Serf collects debris. Ion Engine destroyed. Med. Laser destroyed. Imp. Targeting Computer destroyed. S-10 Pest destroyed. Material Processor disabled. Beam Cannon destroyed. Wheel destroyed. Slammed into S-10 Pest. Acquired 1 matter. Lgt. Assault Rifle destroyed. Slammed into Y-45 Defender. Imp. Targeting Computer broken. Destabilizing: Short circuit. Slammed into Y-45 Defender. Critical hit (Burn: +37). Slammed into Y-45 Defender. Y-45 Defender suffers critical hit (Burn). Acquired Hcp. Battery. Map ----- +----------------------------------------------------+ | ?????????????????????????????????????? | | ?????????????????????????????????????? | | ?????????????????????????????????????? | | ?????????????????????????????????????? | | ?????????????????????????????????????? | | ?????????????????????????????????????? | | ?????????????????????????????????????? | | ?????????????????????????????????????? | | ?????????????????????????????????????? | | ?????????????????????????????????????? | | ?????????????????????????????????????? | | ?????????????????????????????????????? | | ?????????????????????????????????????? | | ??????????????????????????????? ???? | | ??????????????????????????????? #??? | | ??????????????????????????????? #??? | | ??????????????????????????????? #??? | | ??????????????????????????????? #??? | | ??????????????????????????????? #??? | | ??????????????????????????????? #??? | | ??????????????????????????????# #??? | | ?????????????????????????????? #??? | | ??????????????????????????????# #??? | | ?????????????????????####+##### #??? | | ?????????????????????# ss # #??? | | ?????????????????????# @ "" # #??? | | ?????????????????????# / T" # #??? | | ?????????????????????# s"" # #??? | | ?????????????????????# + #??? | | ?????????????????????# """ # #??? | | ?????????????????????# """ # #??? | | ?????????????????????# """ # #??? | | ?????????????????????# # #??? | | ??????????????????############# #??? | | ??????????????????# # #??? | | ??????????????????# + #??? | | ??????????????????# """ """ # #??? | | ?????????????????????"" """ # #??? | | ??????????????????????" """ # #??? | | ??????????????????????" """ # #??? | | ?????????????????????? # #??? | | ??????????????????????######### #??? | | ?????????????################## #??? | | ????????????? #??? | | ?????????????? #??? | | ??????????????"" """ #??? | | ??????????????"" """ ########### | | ????????????"""" R" # # | | ??????????? """ #%% "" # | | ??????????? #% """"" # | +----------------------------------------------------+ Best States ------------- Heat Dissipation 28 Energy Generation 15 Energy Capacity 400 Matter Stores 300 Matter Capacity 300 Sight Range 16 Terrain Scan Range 14 Terrain Scan Density 10 Evasion (%) 50 Targeting Accuracy 12 Item Schematics ----------------- None Robot Schematics ------------------ None Fabricated ------------ Nothing Alien Tech Used ----------------- None Achievements -------------- None Challenges ------------ None Game ------ Seed LightDrainedAutobeam Manual? 0 Play Time 00:21:02 Cumulative 1.6 hours Start 2024.08.22 @ 19:11:47 End 2024.08.22 @ 20:12:58 Sessions 1 Manual Loads 0 Difficulty Rogue Special Mode None Game No. 6 Rogue 5 Adventurer 1 Explorer 0 Win Type - Total 0 Types 0/0/0/0/0/0/0/0/0 Lore% 0 Gallery% 3 Achievement% 5 Wizard Run 0 Options --------- Layout 2 ASCII 0 Keyboard 1 Movement Arrows Keybinds 0 Fullscreen 1 Font 24/Smallcaps Map View 50x44 Zoom Use 0% Tactical HUD 0 Map Filters NONE Filters NONE Steam 1 RUN: 935fb52b-5c7a-4b2c-8ed4-225468e4bdea